bitfinex/quotes_ETHUSD_20250803
["timestamp","ask_amount","ask_price","bid_price","bid_amount"]
[1754239110680,0.001,3495.1,3495.0,4.8853]
[1754239111845,0.001,3495.1,3494.6,0.002]
[1754239112046,0.9381,3495.0,3494.7,4.42]
[1754239112246,0.9381,3495.0,3494.6,0.002]
[1754239112582,0.9381,3494.9,3494.7,4.42]
[1754239113080,0.9381,3494.8,3494.7,4.42]
[1754239113283,0.4669,3495.1,3494.6,0.002]
[1754239113587,0.9381,3495.0,3494.6,0.002]
[1754239113779,0.08958457,3494.9,3494.6,0.002]
[1754239114190,0.4659,3494.8,3494.6,0.002]
[1754239114388,0.9381,3494.8,3494.6,0.002]
[1754239114690,0.4659,3494.7,3494.6,0.002]
[1754239114993,0.55549098,3494.7,3494.6,0.002]
[1754239115491,0.08959098,3494.7,3494.6,0.002]
[1754239115688,0.08959098,3495.0,3494.6,0.4825]
[1754239115869,0.001,3495.1,3494.6,0.4825]
[1754239115870,0.08959098,3494.9,3494.7,0.4805]
[1754239116066,0.08959098,3494.8,3494.7,0.4805]
[1754239116273,0.08959098,3495.0,3494.6,0.002]
[1754239116473,0.08959098,3494.9,3494.6,0.4825]
[1754239116796,0.08959098,3494.8,3494.6,0.4825]
[1754239117008,0.08959098,3494.9,3494.7,0.4805]
[1754239117310,0.001,3495.1,3494.8,0.4805]
[1754239117311,0.08959098,3495.0,3494.8,0.4805]
[1754239117487,0.08959098,3494.9,3494.8,0.4805]
[1754239117667,0.001,3495.1,3494.6,0.002]
[1754239117668,0.08959098,3495.0,3494.6,0.002]
[1754239118000,1.02769098,3494.9,3494.6,4.421]
[1754239118198,0.08959098,3494.8,3494.6,4.421]
[1754239118355,0.08959098,3495.0,3494.7,0.4805]
[1754239118554,0.08959098,3494.9,3494.7,0.4805]
[1754239118773,0.08959098,3495.0,3494.6,4.421]
[1754239119294,0.55549098,3495.0,3494.6,4.9015]
[1754239119592,0.08959098,3494.9,3494.6,0.4825]
[1754239119755,1.02769098,3494.8,3494.6,4.42]
[1754239119960,1.02768923,3494.7,3494.6,0.002]
[1754239122658,0.55548923,3494.7,3494.6,0.002]
[1754239123069,0.55549198,3494.7,3494.6,0.002]
[1754239123993,0.08959198,3494.7,3494.6,0.002]
[1754239124201,0.08959198,3494.8,3494.6,0.002]
[1754239124404,0.08959198,3494.7,3494.6,0.002]
[1754239124701,0.08959198,3494.8,3494.6,0.002]
[1754239124901,0.08959198,3494.7,3494.6,0.002]
[1754239125144,0.08959198,3494.8,3494.6,0.002]
[1754239125262,0.08959198,3494.7,3494.6,0.002]
[1754239125456,1.02769198,3494.7,3494.6,0.002]
[1754239125885,1.02769297,3494.7,3494.6,0.002]
[1754239133729,0.08959297,3494.7,3494.6,0.002]
[1754239134090,0.08959297,3494.7,3494.6,0.4825]
[1754239137429,0.08958964,3494.7,3494.6,0.4825]
[1754239139346,0.08958964,3494.7,3494.6,0.902]
[1754239139752,0.08958964,3494.7,3494.6,0.463]
[1754239141146,0.08958964,3494.7,3494.6,0.902]
[1754239141348,0.08958964,3494.7,3494.6,0.463]
[1754239141554,0.08958964,3494.7,3494.6,0.002]
[1754239141863,1.01298964,3494.7,3494.6,0.002]
[1754239143158,0.54118964,3494.7,3494.6,0.002]
[1754239143563,0.08958964,3494.7,3494.6,0.002]
[1754239143763,0.08958964,3494.7,3494.6,0.463]
[1754239144186,1.01298964,3494.7,3494.6,0.002]
[1754239145041,1.01299522,3494.7,3494.6,0.002]
[1754239147463,11.06299522,3494.7,3494.6,0.002]
[1754239147701,12.16929474,3494.7,3494.6,0.002]
[1754239149969,42.16929474,3494.7,3494.6,0.002]
[1754239150760,42.16930288,3494.7,3494.6,0.002]
[1754239154542,0.55,3494.5,3492.4,0.461]
[1754239154847,3.0,3493.4,3492.4,0.461]
[1754239155047,3.0,3493.4,3491.5,0.441]
[1754239155048,43.0,3493.2,3491.5,0.441]
[1754239155237,0.9234,3493.1,3491.6,0.9]
[1754239155455,4.8696,3493.0,3491.7,0.439]
[1754239155654,3.4516,3492.9,3491.7,0.9]
[1754239155976,3.0,3492.6,3491.8,0.461]
[1754239156273,30.0,3492.7,3491.5,0.002]
[1754239156274,3.0,3492.4,3491.5,0.002]
[1754239156471,3.0,3492.2,3491.6,0.461]
[1754239156638,7.418,3492.2,3491.6,0.461]
[1754239156838,0.4516,3492.1,3491.6,0.461]
[1754239157052,1.28574,3492.0,3491.6,0.411]
[1754239157291,1.28574,3492.0,3491.5,0.002]
[1754239157292,0.9234,3491.9,3491.5,0.002]
[1754239157640,0.4718,3491.9,3491.5,0.002]
[1754239157841,0.9234,3491.8,3491.5,0.002]
[1754239158154,3.9234,3491.8,3491.5,0.002]
[1754239158358,4.840954,3491.8,3491.5,0.002]
[1754239158763,3.917554,3491.8,3491.5,0.002]
[1754239159002,10.0,3493.4,3491.6,0.439]
[1754239159138,4.419,3493.1,3491.6,0.9]
[1754239159478,4.419,3493.1,3491.7,0.9]
[1754239159636,4.419,3493.1,3491.8,0.9]
[1754239159842,3.0,3493.0,3491.9,0.9]
[1754239160055,3.0,3493.0,3492.0,0.9]
[1754239160282,3.0,3493.1,3492.1,0.9]
[1754239160453,3.0,3493.1,3492.1,0.439]
[1754239160658,3.0,3493.1,3492.2,0.461]
[1754239161678,3.4516,3493.1,3492.2,0.461]
[1754239161879,4.28584,3493.1,3492.2,0.461]
[1754239162201,0.4516,3493.8,3492.3,0.92863442]
[1754239162374,0.4516,3493.5,3492.4,0.461]
[1754239162542,0.4718,3493.4,3492.4,0.461]
[1754239162743,0.4516,3493.3,3492.4,0.461]
[1754239163180,0.4516,3493.3,3491.5,0.002]
[1754239163181,0.4718,3493.2,3491.9,0.461]
[1754239163484,3.98584,3493.1,3491.9,0.461]
[1754239163696,0.53424,3493.1,3491.9,0.461]
[1754239163988,0.9234,3493.0,3491.9,0.461]
[1754239165904,0.4718,3492.9,3491.9,0.461]
[1754239166065,0.9234,3492.9,3491.9,0.461]
[1754239166247,1.069164,3492.9,3491.9,0.461]
[1754239166957,1.069164,3492.9,3491.9,0.9]
[1754239167263,3.0,3493.5,3492.0,0.92863688]
[1754239167467,0.9244,3493.7,3492.1,0.9]
[1754239167652,0.08962826,3493.6,3492.2,0.439]
[1754239167859,0.4516,3493.5,3492.2,0.9]
[1754239168058,0.4516,3493.5,3492.1,0.1432]
[1754239168291,3.001,3493.7,3492.2,0.9]
[1754239168468,0.08962907,3493.6,3492.3,0.439]
[1754239168672,0.08962907,3493.6,3492.4,0.6361]
[1754239168860,0.08962907,3493.6,3492.5,0.9386]
[1754239169193,4.6664,3493.7,3492.6,0.4929]
[1754239169194,1.27023198,3493.5,3492.6,0.4929]
[1754239169493,0.08962907,3493.4,3492.6,0.4929]
[1754239169691,0.08962907,3493.4,3492.5,0.4929]
[1754239169692,0.4596,3493.3,3492.5,0.4929]
[1754239169857,0.08962907,3493.2,3492.5,0.4929]
[1754239171561,0.08962907,3493.1,3492.5,0.4929]
[1754239171761,0.08962907,3493.0,3492.5,0.4929]
[1754239171986,0.08962907,3493.2,3492.6,0.4929]
[1754239172196,0.08962907,3493.1,3492.6,0.9386]
[1754239172412,0.08962907,3493.3,3492.7,0.4929]
[1754239172560,0.08962907,3493.2,3492.7,0.4929]
[1754239172758,0.001,3493.7,3492.9,0.1432]
[1754239172759,0.08962907,3493.6,3492.9,0.1432]
[1754239172961,0.08962907,3493.5,3493.0,0.4929]
[1754239173296,0.08962907,3493.4,3492.9,0.1432]
[1754239173468,0.08962907,3493.4,3493.0,0.4929]
[1754239173653,1.00222907,3493.4,3492.9,0.1432]
[1754239173860,1.00222907,3493.3,3492.5,0.4929]
[1754239174057,0.08962907,3493.2,3492.5,0.4929]
[1754239174764,0.9126,3493.3,3492.5,0.4929]
[1754239175394,0.08963137,3493.2,3492.5,0.4929]
[1754239176858,0.0896301,3493.2,3492.5,0.4929]
[1754239177063,0.9126,3493.1,3492.3,4.419]
[1754239177265,0.4596,3493.0,3492.3,4.419]
[1754239177458,0.9126,3493.0,3492.2,4.419]
[1754239177666,0.9126,3492.9,3492.2,4.419]
[1754239178101,0.453,3492.9,3492.1,0.4929]
[1754239178402,0.4596,3492.8,3492.0,4.419]
[1754239178899,0.453,3492.7,3492.0,4.419]
[1754239179375,0.4596,3492.6,3492.0,4.419]
[1754239179565,1.25586,3492.6,3492.0,4.419]
[1754239180480,1.25586,3492.6,3491.9,4.9119]
[1754239180675,1.25586,3492.6,3491.9,0.4929]
[1754239180881,1.25586,3492.6,3491.9,4.9119]
[1754239181075,1.25586,3492.6,3491.8,4.419]
[1754239181283,0.79626,3492.6,3492.0,0.4929]
[1754239181994,1.25586,3492.6,3492.0,0.4929]
[1754239182190,1.742526,3492.5,3491.7,0.4929]
[1754239182501,0.9126,3492.4,3491.6,0.002]
[1754239182884,0.9126,3492.3,3491.6,0.002]
[1754239183803,0.4596,3492.2,3491.6,0.002]
[1754239185189,0.453,3492.1,3491.6,0.002]
[1754239185393,0.84426,3492.1,3491.6,0.002]
[1754239185574,0.4596,3492.0,3491.6,0.002]
[1754239185769,0.9126,3492.0,3491.6,0.002]
[1754239186166,0.9126,3491.9,3491.6,0.002]
[1754239186666,0.9126,3491.8,3491.6,0.002]
[1754239187170,0.9126,3491.7,3491.6,0.002]
[1754239188415,0.9126,3492.2,3491.6,0.002]
[1754239188572,0.08966072,3492.1,3491.6,0.4949]
[1754239188778,0.08966072,3492.1,3491.7,0.4929]
[1754239188973,0.1742526,3492.2,3491.7,0.4929]
[1754239189198,0.08965442,3492.3,3491.8,0.4929]
[1754239189400,1.282926,3492.5,3491.7,0.4457]
[1754239189401,0.08965442,3492.4,3491.7,0.4457]
[1754239189598,0.08965442,3492.3,3491.9,0.4929]
[1754239189880,0.08965442,3492.4,3491.9,0.4929]
[1754239190075,0.08965442,3492.3,3491.9,0.4929]
[1754239190280,0.54265442,3492.4,3491.9,0.4929]
[1754239190499,0.08965442,3492.3,3491.9,0.4929]
[1754239191006,0.54265442,3492.3,3491.9,0.4929]
[1754239191172,0.9126,3492.3,3491.6,0.002]
[1754239191379,0.08965462,3492.2,3491.7,0.4929]
[1754239191576,0.08965462,3492.2,3491.8,0.4929]
[1754239192819,0.08965462,3492.1,3491.8,0.4929]
[1754239193009,0.08965462,3492.2,3491.8,0.4929]
[1754239193194,0.08965462,3492.1,3491.8,0.4929]
[1754239193385,0.08965462,3492.2,3491.8,0.4929]
[1754239193585,0.08965462,3492.1,3491.8,0.4929]
[1754239193786,0.08965462,3492.2,3491.8,0.4929]
[1754239193987,0.08965462,3492.1,3491.8,0.4929]
[1754239194188,0.9126,3492.3,3491.8,0.4929]
[1754239194486,0.08965722,3492.2,3491.8,0.4929]
[1754239194684,0.08965722,3492.1,3491.8,0.4929]
[1754239194885,0.001,3492.1,3491.8,0.4929]
[1754239195116,0.09065722,3492.1,3491.8,0.4929]
[1754239195319,0.001,3492.1,3491.8,0.4929]
[1754239195517,0.09065722,3492.1,3491.8,0.4929]
[1754239195712,0.001,3492.1,3491.8,0.4929]
[1754239195920,0.09065722,3492.1,3491.8,0.4929]
[1754239196103,0.001,3492.1,3491.8,0.4929]
[1754239196303,0.09065722,3492.1,3491.8,0.4929]
[1754239196509,0.001,3492.1,3491.8,0.4929]
[1754239197716,0.001,3492.1,3491.6,0.002]
[1754239197916,0.001,3492.1,3491.6,0.4949]
[1754239198120,0.454,3492.1,3491.6,0.4949]
[1754239198422,0.001,3492.1,3491.6,0.002]
[1754239198609,0.9126,3492.0,3491.6,0.002]
[1754239198915,0.4372,3491.9,3491.6,0.002]
[1754239200375,0.001,3492.1,3491.6,0.002]
[1754239200491,0.9246,3491.8,3491.6,0.002]
[1754239200822,0.9246,3491.7,3491.6,0.002]
[1754239201002,2.02206,3491.7,3491.6,0.002]
[1754239204390,2.11172756,3491.7,3491.6,0.002]
[1754239205908,12.16172756,3491.7,3491.6,0.002]
[1754239207922,12.1617336,3491.7,3491.6,0.002]
[1754239208487,42.1617336,3491.7,3491.6,0.002]
[1754239209128,42.4485336,3491.7,3491.6,0.002]
[1754239209433,42.1617336,3491.7,3491.6,0.002]
[1754239211846,42.7117336,3491.7,3491.6,0.002]
[1754239212717,46.5807336,3491.7,3491.6,0.002]
[1754239213063,16.5807336,3491.7,3491.6,0.002]
[1754239213366,12.1617336,3491.7,3491.6,0.002]
[1754239213515,16.5807336,3491.7,3491.6,0.002]
[1754239215840,16.5807336,3491.7,3491.6,0.002]
[1754239216596,35.1117336,3491.7,3491.6,0.002]
[1754239216871,0.0896736,3491.7,3491.6,0.4536]
[1754239217074,1.0142736,3491.7,3491.6,0.002]
[1754239217534,34.0142736,3491.7,3491.6,0.002]
[1754239217734,33.88252067,3491.7,3491.6,0.002]
[1754239217935,36.88252067,3491.7,3491.6,0.002]
[1754239218166,41.30152067,3491.7,3491.6,0.002]
[1754239218581,33.55,3491.6,3491.5,0.002]
[1754239218755,33.6396736,3491.6,3491.5,0.002]
[1754239218958,37.43252067,3491.6,3491.5,0.002]
[1754239219167,37.43254305,3491.6,3491.5,0.002]
[1754239219537,57.5573129,3491.6,3491.5,0.002]
[1754239219742,3.55,3491.4,3491.2,0.002]
[1754239219970,38.05869598,3491.3,3491.2,0.002]
[1754239220167,40.62306733,3491.3,3491.2,0.002]
[1754239221543,39.69846733,3491.3,3491.2,0.002]
[1754239221867,40.62306733,3491.3,3491.2,0.002]
[1754239222675,39.58566733,3491.3,3491.2,0.002]
[1754239222844,39.14846733,3491.3,3491.2,0.002]
[1754239223078,34.72946733,3491.3,3491.2,0.002]
[1754239223311,39.14846733,3491.3,3491.2,0.002]
[1754239224305,39.58566733,3491.3,3491.2,0.002]
[1754239224626,39.14846733,3491.3,3491.2,0.4536]
[1754239224823,39.14846733,3491.3,3491.2,0.002]
[1754239225812,40.07306733,3491.3,3491.2,0.002]
[1754239227180,40.07306843,3491.3,3491.2,0.002]
[1754239227575,39.14846843,3491.3,3491.2,0.002]
[1754239227802,34.72946843,3491.3,3491.2,0.002]
[1754239228116,39.14846843,3491.3,3491.2,0.002]
[1754239229117,40.07236843,3491.3,3491.2,0.002]
[1754239230516,40.50275331,3491.3,3491.2,0.002]
[1754239231614,40.0,3490.8,3489.8,0.002]
[1754239231917,11.55669708,3490.7,3489.9,0.9255]
[1754239232118,0.08969708,3490.6,3490.0,0.4798]
[1754239232324,0.08969708,3490.6,3490.1,0.4457]
[1754239232782,0.08969708,3490.6,3490.2,0.9255]
[1754239232982,0.08969708,3490.6,3490.3,0.4798]
[1754239233586,0.08969708,3490.5,3490.4,0.4798]
[1754239233783,0.08969708,3490.6,3490.4,0.4798]
[1754239233989,0.08969708,3490.5,3490.4,0.4798]
[1754239234536,0.08969708,3490.5,3490.1,0.4798]
[1754239234839,0.08969708,3490.4,3490.0,0.4457]
[1754239235135,0.08969708,3490.3,3489.8,0.002]
[1754239235298,0.4392,3490.4,3490.0,0.4798]
[1754239235506,0.08969708,3490.3,3490.0,0.4798]
[1754239235732,0.78450085,3490.3,3490.0,0.4798]
[1754239236036,0.08969708,3490.2,3490.0,0.4798]
[1754239236332,0.08969708,3490.2,3489.8,0.002]
[1754239236716,0.08969708,3490.2,3489.9,0.4798]
[1754239237129,0.08969708,3490.1,3489.9,0.4798]
[1754239237329,7.048,3490.0,3489.9,0.4798]
[1754239238040,7.13771213,3490.0,3489.9,0.4798]
[1754239238634,7.13771213,3490.0,3489.8,0.002]
[1754239238834,7.048,3490.0,3489.8,0.002]
[1754239239031,7.048,3490.0,3489.9,0.4798]
[1754239239216,7.13771173,3490.0,3489.9,0.4798]
[1754239239540,7.13771173,3490.0,3489.9,0.4818]
[1754239240303,8.46422299,3490.0,3489.9,0.002]
[1754239241951,8.90342299,3490.0,3489.9,0.002]
[1754239242263,12.38812299,3490.0,3489.9,0.002]
[1754239244533,11.46422299,3490.0,3489.9,0.002]
[1754239244864,7.13771173,3490.0,3489.9,0.9275]
[1754239245656,7.048,3490.0,3489.9,0.9275]
[1754239253176,7.048,3490.0,3489.9,0.4818]
[1754239255680,7.048,3490.0,3489.9,0.002]
[1754239256243,7.9719,3490.0,3489.9,0.002]
[1754239257080,8.06160722,3490.0,3489.9,0.002]
[1754239257449,7.9719,3490.0,3489.9,0.002]
[1754239257651,8.0616064,3490.0,3489.9,0.002]
[1754239258984,7.5769064,3490.0,3489.9,0.002]
[1754239259284,7.5769064,3490.0,3489.9,0.9065]
[1754239259285,7.048,3490.0,3489.9,0.9065]
[1754239260356,7.048,3491.1,3489.9,0.9065]
[1754239260554,1.01449631,3491.0,3490.0,0.4588]
[1754239260756,1.01449631,3490.9,3490.0,0.4588]
[1754239260976,7.13769631,3490.8,3490.0,0.4588]
[1754239261292,1.01449631,3490.7,3489.9,0.002]
[1754239261591,0.08969656,3490.6,3489.9,0.002]
[1754239261793,0.08969656,3490.5,3489.9,0.002]
[1754239262103,0.08969516,3490.5,3489.9,0.5045]
[1754239262271,7.048,3490.8,3490.3,0.1432]
[1754239262592,7.048,3490.8,3490.4,0.9045]
[1754239262900,7.048,3490.8,3490.5,0.4457]
[1754239263198,7.048,3490.8,3490.6,0.4457]
[1754239263378,7.048,3490.8,3490.7,0.4588]
[1754239263584,7.048,3490.8,3490.7,0.9045]
[1754239266292,7.048,3490.8,3490.7,0.4588]
[1754239268524,0.001,3491.3,3490.7,0.9045]
[1754239268815,0.001,3491.3,3490.8,5.3205]
[1754239269105,0.001,3491.3,3490.9,0.602]
[1754239269284,0.001,3491.3,3491.0,0.4588]
[1754239269496,0.001,3491.3,3490.9,0.1432]
[1754239269687,0.001,3491.3,3491.1,0.4588]
[1754239274705,0.001,3491.3,3491.2,0.36306459]
[1754239274882,0.001,3491.3,3491.2,0.82186459]
[1754239275284,0.001,3491.3,3491.2,0.36306459]
[1754239276219,0.001,3491.3,3491.2,0.82186459]
[1754239285327,0.001,3491.3,3491.2,0.4588]
[1754239287428,0.001,3491.3,3491.2,0.602]
[1754239287609,0.001,3491.3,3491.2,1.62634344]
[1754239287815,0.001,3491.3,3491.2,2.48744844]
[1754239288010,0.001,3491.3,3491.2,6.90044844]
[1754239288215,0.001,3491.3,3491.2,7.86184984]
[1754239290244,0.001,3491.3,3491.2,7.41614984]
[1754239290942,0.001,3491.3,3491.2,7.86014984]
[1754239294323,0.001,3491.3,3491.2,7.41614984]
[1754239295336,0.001,3491.3,3491.2,10.88674984]
[1754239296132,0.001,3491.3,3491.2,26.99463524]
[1754239298841,0.001,3491.3,3491.2,29.85897987]
[1754239299041,0.001,3491.3,3491.2,29.71577987]
[1754239299361,0.001,3491.3,3491.2,29.85897987]
[1754239299563,0.001,3491.3,3491.2,29.85697987]
[1754239300057,0.001,3491.3,3491.2,22.58163524]
[1754239300254,0.001,3491.3,3491.2,26.99263524]
[1754239302848,0.001,3491.3,3491.2,29.85697987]
[1754239304926,0.001,3491.3,3491.2,26.99163524]
[1754239305321,0.001,3491.3,3491.2,29.85597987]
[1754239305940,0.001,3491.3,3491.2,26.99163524]
[1754239308267,0.001,3491.3,3491.2,26.54763524]
[1754239310894,0.001,3491.3,3491.2,29.41197987]
[1754239311094,0.001,3491.3,3491.2,10.43874984]
[1754239312196,0.001,3491.3,3491.2,13.30309447]
[1754239313503,0.001,3491.3,3491.2,13.60389447]
[1754239313688,0.001,3491.3,3491.2,13.74709447]
[1754239314766,0.001,3491.3,3491.2,9.95234984]
[1754239315006,0.001,3491.3,3491.2,13.30209447]
[1754239315789,0.001,3492.1,3491.6,16.6578854]
[1754239315982,0.9409,3492.0,3491.8,3.55]
[1754239316175,0.9409,3492.0,3491.9,7.958]
[1754239316379,0.001,3492.1,3492.0,3.0]
[1754239316933,0.4952,3492.1,3492.0,3.0]
[1754239317098,0.9419,3492.1,3492.0,4.670964]
[1754239317497,0.9419,3492.1,3492.0,7.408]
[1754239317700,0.9419,3492.1,3492.0,4.408]
[1754239319098,0.9419,3492.1,3491.9,0.1432]
[1754239319304,0.001,3492.1,3492.0,4.408]
[1754239319878,0.8846,3492.1,3492.0,4.408]
[1754239320921,0.8846,3492.1,3492.0,4.43663688]
[1754239321272,0.4527,3492.1,3492.0,5.28072027]
[1754239321569,0.8846,3492.1,3492.0,4.43563688]
[1754239323082,3.0,3493.3,3492.0,4.43563688]
[1754239323857,3.0,3493.3,3491.9,0.1432]
[1754239324025,3.0,3493.3,3492.0,4.407]
[1754239324767,0.001,3492.1,3492.0,4.407]
[1754239324965,0.8846,3492.1,3491.9,0.1432]
[1754239325271,0.001,3492.1,3492.0,4.407]
[1754239325834,0.8846,3492.1,3492.0,4.407]
[1754239326863,0.8846,3492.1,3491.8,0.1432]
[1754239327065,0.001,3492.1,3492.0,4.407]
[1754239327664,0.4329,3492.1,3492.0,4.407]
[1754239327865,0.8846,3492.1,3491.8,0.1432]
[1754239328067,0.8846,3492.1,3492.0,4.407]
[1754239328434,0.8846,3492.1,3491.7,3.0]
[1754239328435,0.8846,3492.1,3491.6,6.884]
[1754239328643,0.8836,3492.0,3491.7,4.407]
[1754239328871,0.8836,3491.9,3491.7,4.407]
[1754239329067,0.001,3492.1,3491.7,4.407]
[1754239329371,0.8836,3491.8,3491.7,4.407]
[1754239332075,0.8836,3491.8,3491.4,0.1432]
[1754239332262,0.4319,3491.7,3491.5,4.407]
[1754239332463,0.4517,3491.7,3491.5,4.407]
[1754239332634,0.4319,3491.6,3491.5,4.407]
[1754239334097,0.4319,3491.9,3491.5,4.8635]
[1754239334246,0.4517,3492.0,3491.5,5.51070288]
[1754239334441,0.4319,3491.8,3491.6,0.02864016]
[1754239334677,0.4319,3491.8,3491.5,0.4565]
[1754239334887,0.4319,3491.8,3491.6,4.406]
[1754239335742,0.4319,3492.0,3491.6,4.8625]
[1754239335943,0.4319,3491.9,3491.6,4.8625]
[1754239338982,0.001,3492.1,3491.6,4.8625]
[1754239339288,0.4319,3491.8,3491.6,4.8625]
[1754239339505,0.4319,3491.8,3491.6,5.45507418]
[1754239339784,0.4319,3491.8,3491.6,4.99857418]
[1754239339988,0.001,3492.1,3491.6,4.406]
[1754239340142,0.4319,3491.7,3491.6,4.406]
[1754239340537,0.8836,3491.7,3491.6,4.406]
[1754239343086,0.8836,3491.7,3491.2,1.006354]
[1754239343381,0.001,3492.1,3491.2,1.006354]
[1754239343382,0.8836,3491.6,3491.2,0.002]
[1754239343681,0.8836,3491.5,3491.3,4.406]
[1754239343843,0.8836,3491.4,3491.3,4.406]
[1754239344484,0.8836,3491.4,3491.3,4.405]
[1754239344687,0.8836,3491.4,3491.2,0.002]
[1754239344871,1.61088854,3492.0,3491.3,4.405]
[1754239345191,1.77197739,3491.9,3491.3,4.405]
[1754239345558,0.8836,3491.8,3491.3,4.405]
[1754239345956,0.8836,3491.7,3491.3,4.405]
[1754239346157,1.77197739,3491.9,3491.3,4.405]
[1754239346358,0.8836,3491.6,3491.3,4.405]
[1754239346577,0.8836,3491.5,3491.3,4.405]
[1754239346771,0.8836,3491.4,3491.3,4.405]
[1754239346945,0.8836,3491.4,3491.3,4.407]
[1754239349347,0.4319,3491.4,3491.3,4.407]
[1754239349981,7.05,3492.0,3491.3,5.81952]
[1754239350151,7.05,3492.0,3491.4,0.9257]
[1754239350351,7.4975,3492.0,3491.5,0.4572]
[1754239350551,0.4475,3491.9,3491.5,0.4572]
[1754239351052,0.4475,3491.8,3491.5,0.4572]
[1754239351784,0.8975,3491.7,3491.3,0.002]
[1754239352080,0.8975,3491.7,3491.5,4.405]
[1754239352284,0.8975,3491.6,3491.5,4.405]
[1754239352669,0.8975,3491.6,3491.4,4.405]
[1754239352875,1.09022087,3491.6,3491.4,4.405]
[1754239353063,0.8975,3491.5,3491.4,4.405]
[1754239353877,0.45,3491.5,3491.4,4.405]
[1754239354064,0.8975,3491.5,3491.4,4.405]
[1754239356591,1.24485,3491.8,3491.4,4.405]
[1754239356792,0.4475,3491.7,3491.4,4.405]
[1754239357003,0.4475,3491.7,3491.4,4.8622]
[1754239362007,0.4475,3491.7,3491.4,0.4572]
[1754239362214,0.87805505,3491.7,3491.5,4.404]
[1754239363202,7.05,3492.0,3491.5,4.404]
[1754239363403,7.05,3492.0,3491.6,0.9257]
[1754239363577,7.05,3492.0,3491.7,0.9257]
[1754239363773,7.05,3492.0,3491.7,0.4685]
[1754239364006,7.05,3492.0,3491.8,0.4572]
[1754239367420,7.051,3492.1,3491.8,0.4572]
[1754239367585,8.29335,3492.1,3491.8,0.4572]
[1754239367785,8.29335,3492.1,3491.3,0.002]
[1754239367786,0.8975,3492.0,3491.3,0.002]
[1754239368116,0.8975,3492.0,3491.4,4.403]
[1754239368415,0.4475,3491.9,3491.4,4.403]
[1754239368717,0.4475,3491.8,3491.5,0.4572]
[1754239369291,0.4475,3491.8,3491.5,0.4592]
[1754239370199,0.4475,3491.7,3491.6,4.403]
[1754239371718,0.4475,3491.7,3491.5,0.002]
[1754239371879,0.4475,3491.7,3491.6,4.403]
[1754239372276,0.4475,3491.7,3491.5,0.002]
[1754239372483,0.4475,3491.6,3491.5,4.405]
[1754239374848,7.051,3492.1,3491.5,4.8622]
[1754239375124,7.051,3492.1,3491.6,0.9257]
[1754239375314,7.051,3492.1,3491.7,0.9257]
[1754239375834,7.051,3492.1,3491.8,0.4572]
[1754239376203,7.051,3492.1,3491.9,0.4572]
[1754239377800,7.4985,3492.1,3491.7,0.4572]
[1754239378005,1.69235,3492.0,3491.6,4.402]
[1754239378201,0.8975,3491.9,3491.6,4.402]
[1754239378428,0.45,3491.9,3491.6,4.402]
[1754239378631,0.4475,3491.8,3491.6,4.402]
[1754239378996,0.79485,3492.0,3491.6,4.402]
[1754239379331,0.4285,3491.7,3491.6,4.402]
[1754239380092,0.829585,3491.8,3491.6,4.402]
[1754239380291,0.4285,3491.8,3491.6,4.402]
[1754239381023,7.4795,3492.1,3491.7,0.4672]
[1754239381196,7.051,3492.1,3491.6,4.402]
[1754239381408,7.051,3492.1,3491.8,0.4672]
[1754239381929,0.9069,3492.0,3491.6,4.401]
[1754239382132,0.9069,3491.9,3491.6,4.401]
[1754239382310,0.4784,3491.9,3491.6,4.401]
[1754239382510,0.4285,3491.8,3491.6,4.401]
[1754239382894,0.4285,3491.8,3491.5,0.002]
[1754239383232,0.4285,3491.8,3491.6,4.401]
[1754239383410,0.7051,3492.0,3491.6,0.4672]
[1754239383612,0.7051,3492.0,3491.5,4.403]
[1754239383833,0.4285,3491.9,3491.6,0.4672]
[1754239384644,0.4285,3491.9,3491.5,4.403]
[1754239384832,0.4784,3491.9,3491.5,4.403]
[1754239385039,0.4285,3491.8,3491.5,4.403]
[1754239385349,0.4285,3491.8,3491.5,4.8702]
[1754239387668,0.4285,3491.7,3491.5,0.002]
[1754239387816,0.4285,3491.7,3491.6,4.4]
[1754239391244,0.9069,3491.7,3491.6,0.002]
[1754239391647,0.9069,3491.7,3491.6,4.402]
[1754239392825,0.9069,3491.7,3491.6,0.002]
[1754239394063,33.4285,3491.7,3491.6,0.002]
[1754239394242,36.77514707,3491.7,3491.6,0.002]
[1754239395439,41.17414707,3491.7,3491.6,0.002]
[1754239395883,41.72414707,3491.7,3491.5,0.002]
[1754239396034,34.4569,3491.6,3491.5,0.002]
[1754239396236,37.32514707,3491.6,3491.5,0.002]
[1754239398255,0.55,3491.4,3491.3,0.002]
[1754239398570,51.0568854,3491.4,3491.3,0.002]
[1754239398768,3.0,3491.3,3491.2,0.002]
[1754239399075,3.55,3491.1,3491.0,0.002]
[1754239399376,39.51817906,3491.1,3491.0,0.002]